Cogmind - Beta 11 *** ADVENTURER MODE // 2022.03.27 @ 20:20:42 // Winter2019/RPGLIKE Player: POG Result: Destroyed by B-74 Champion with Powered Hammer Performance ------------- Evolutions (7) 3500 Regions Visited (19) 3800 Robots Destroyed (384) 1920 Value Destroyed (17885) 17885 Prototype IDs (20) 400 Alien Tech Used (0) 0 Bonus (11880) 11880 TOTAL SCORE: 39385 Bonus ------- High Alert Combat Kills 5499 Follower Combat Kills 1548 Entered Garrisons 1400 Used RIF Installer 3500 Friendly Fire -67 Cogmind --------- Core Integrity 0/850 Matter 600/600 Energy 310/310 System Corruption 3% Temperature Cool (0) Movement Treading (170) Location -3/Research Parts ------- > --- POWER (3) -------- Fusion Compressor Light Antimatter Reactor Light Quantum Reactor > --- PROPULSION (4) --- Armored Heavy Treads Armored Heavy Treads > --- UTILITY (10) ----- Experimental Power Amplifier Matter Compressor Improved Signal Interpreter Improved Terrain Scanner Advanced Target Analyzer Improved Kinecellerator Advanced Weapon Cycler Advanced Actuator Array Relay Coupler [Brawler] (62) Long-range Tractor Beam > --- WEAPON (6) ------- Helical Railgun Hardcell Cannon Light Antimatter Cannon Gamma Bomb Array Advanced Remote Datajack Force Lance > --- INVENTORY (5) ---- Compact Wheel Energy Well (350) Improved Force Field Heavy Gauss Cannon Faulty Advanced Micro-nuke Launcher Peak State ------------ > --- POWER ------------ Light Neutrino Core Light Antimatter Reactor Light Quantum Reactor > --- PROPULSION ------- Armored Heavy Treads Armored Heavy Treads > --- UTILITY ---------- Experimental Power Amplifier Matter Compressor Improved Signal Interpreter Improved Terrain Scanner Advanced Target Analyzer Improved Kinecellerator Advanced Weapon Cycler Advanced Actuator Array Relay Coupler [Brawler] Long-range Tractor Beam > --- WEAPON ----------- Helical Railgun Hardcell Cannon Light Antimatter Cannon Gamma Bomb Array Advanced Remote Datajack Force Lance > --- INVENTORY -------- Compact Wheel Energy Well Improved Force Field Heavy Gauss Cannon Advanced Micro-nuke Launcher [Rating: 158] Favorites ----------- Power Improved Deuterium Engine Engine Improved Deuterium Engine Power Core Nuclear Core Reactor Light Antimatter Reactor Propulsion Compact Wheel Treads Light Treads Wheel Compact Wheel Hover Unit Combat Gravmag System Utility Improved Terrain Scanner Device Improved Terrain Scanner Storage Medium Matter Pod Processor Improved Signal Interpreter Hackware Relay Coupler [Grunt] Protection Hardened Medium Armor Plating Weapon KE Penetrator Energy Gun Advanced Beam Rifle Energy Cannon Advanced Beam Cannon Ballistic Gun KE Penetrator Ballistic Cannon Gauss Cannon Launcher Heavy Rocket Launcher Special Weapon Remote Datajack Impact Weapon Impact Mace Slashing Weapon Segregator Piercing Weapon Force Lance Special Melee Weapon Improved Datajack Build | -11 -10 -10 -9 -8 -8 -8 -7 -7 -7 -7 -6 -6 -6 -6 -5 -5 -4 -4 -3 ------- Run | Scr Mat Min Mat Mat Gar Mat Fac Gar Fac Gar Fac Gar Fac Gar Fac Gar Fac Gar Res Slots Evolved 19 | 4 . 2 2 2 . . 2 1 . 1 . 1 . . . . 1 . 3 Power 2 | 1 . . . . . . . . . . . . . . . . . . 1 Propulsion 3 | 1 . . . 1 . . . . . . . . . . . . . . 1 Utility 9 | 1 . 1 1 1 . . 2 1 . . . 1 . . . . 1 . . Weapon 5 | 1 . 1 1 . . . . . . 1 . . . . . . . . 1 Parts Attached 151 | 8 2 1 11 11 3 9 9 3 3 3 7 6 2 5 2 11 2 9 44 Power 23 | 2 . . 2 3 1 . 2 . . . 1 . . . . 4 . 1 7 Engine 8 | 2 . . 2 1 . . 2 . . . 1 . . . . . . . . Core 10 | . . . . 2 1 . . . . . . . . . . 2 . . 5 Reactor 5 | . . . . . . . . . . . . . . . . 2 . 1 2 Propulsion 16 | 2 2 . . . . 1 . . 1 2 . . . . . 1 . 1 6 Treads 6 | 2 . . . . . . . . . 2 . . . . . . . . 2 Leg . | . . . . . . . . . . . . . . . . . . . . Wheel 9 | . 2 . . . . 1 . . 1 . . . . . . 1 . . 4 Hover 1 | . . . . . . . . . . . . . . . . . . 1 . Flight . | . . . . . . . . . . . . . . . . . . . . Utility 47 | 2 . 1 1 2 . 2 2 3 2 . 3 2 2 3 2 5 1 2 12 Device 23 | 2 . . . . . . 1 . 2 . 2 1 2 . 2 3 . . 8 Storage 3 | . . 1 . . . . . 1 . . . . . 1 . . . . . Processor 4 | . . . . . . 1 1 . . . . . . . . . . 1 1 Hackware 12 | . . . . . . . . 2 . . 1 1 . 2 . 2 1 1 2 Protection 5 | . . . 1 2 . 1 . . . . . . . . . . . . 1 Artifact . | . . . . . . . . . . . . . . . . . . . . Weapon 65 | 2 . . 8 6 2 6 5 . . 1 3 4 . 2 . 1 1 5 19 Energy Gun 12 | 1 . . 4 4 1 1 . . . . . . . . . . . . 1 Energy Cannon 6 | . . . 3 1 . . . . . . . . . . . . . 2 . Ballistic Gun 11 | 1 . . . . . 1 1 . . . 1 3 . . . 1 . 2 1 Ballistic Cannon 18 | . . . . . . 4 . . . . 1 1 . . . . 1 . 11 Launcher 6 | . . . . . . . 1 . . . . . . . . . . . 5 Special Weapon 5 | . . . 1 1 1 . . . . . 1 . . . . . . . 1 Impact Weapon 4 | . . . . . . . 3 . . . . . . 1 . . . . . Slashing Weapon 1 | . . . . . . . . . . . . . . 1 . . . . . Piercing Weapon 1 | . . . . . . . . . . . . . . . . . . 1 . Special Melee Weapon 1 | . . . . . . . . . . 1 . . . . . . . . . Unidentified Prototypes 14 | . . . 2 1 . 1 1 . . . . . 1 . . . . . 8 Parts Lost 12 | . . . . . . . . 3 . 2 1 . . 1 1 1 . 2 1 Power . | . . . . . . . . . . . . . . . . . . . . Propulsion 6 | . . . . . . . . 1 . 2 . . . 1 . . . 2 . Utility 4 | . . . . . . . . 2 . . . . . . 1 1 . . . Weapon 2 | . . . . . . . . . . . 1 . . . . . . . 1 Highest Loss Streak 2 | . . . . . . . . 2 . 2 1 . . 1 1 1 . 2 1 To Critical Strikes . | . . . . . . . . . . . . . . . . . . . . Average Slot Usage (%) 96 | . 100 95 97 97 91 96 99 93 98 99 99 99 100 98 91 93 98 94 94 Engine 7 | . 25 21 17 7 . . 8 11 11 11 11 10 10 10 10 1 . . . Core 3 | . . . . 6 13 14 4 . . . . . . . . 2 . . 6 Reactor 2 | . . . . . . . . . . . . . . . . 5 10 9 5 Treads 3 | . 16 . . . . . . . . 3 11 10 10 8 5 5 5 . 1 Wheel 11 | . 8 21 18 14 14 18 20 16 15 12 5 5 5 5 5 6 10 5 7 Device 20 | . 25 21 18 14 14 14 18 11 15 22 20 17 21 21 17 22 25 25 25 Storage 7 | . . 9 9 7 7 7 6 7 11 11 11 10 10 9 5 5 5 5 4 Processor 7 | . . . . . . 3 6 11 11 11 11 10 10 10 10 10 10 10 8 Hackware 3 | . . . . . . . . 2 6 . . 5 5 5 10 7 7 9 6 Protection 2 | . . . . 13 14 10 6 4 . . . . . . . . . . . Energy Gun 5 | . 12 10 23 26 27 12 . . . . . . . . . . . . . Ballistic Gun 6 | . 12 10 . . . 1 3 5 5 5 4 6 15 15 15 15 10 8 1 Ballistic Cannon 5 | . . . . . . 13 14 5 5 5 5 9 . . . . 4 5 12 Launcher 1 | . . . . . . . 3 5 5 5 4 . . . . . . . 1 Special Weapon 2 | . . . 3 . . . . . . . 2 5 5 5 5 5 5 5 3 Impact Weapon 2 | . . . . . . . 3 5 5 5 5 5 5 4 5 5 5 4 . Naked Turns . | . . . . . . . . . . . . . . . . . . . . Heaviest Build 108 | 14 14 16 30 42 40 55 64 58 56 57 58 60 55 56 56 68 75 79 108 Greatest Support 130 | 50 50 42 42 42 42 58 58 58 58 58 26 26 26 26 26 42 42 42 130 Greatest Overweight (x) 8 | . 1 . . . . 1 1 1 1 2 2 2 2 2 2 2 1 3 8 Average Overweight (x) . | . . . . . . . . . . . 1 1 1 1 1 1 1 1 1 Largest Inventory Capacity 5 | 2 2 2 2 2 4 4 4 4 4 4 4 4 4 4 4 5 5 5 5 Average Capacity 3 | 1 2 2 2 2 2 4 4 4 4 4 4 4 4 4 4 4 5 5 5 Most Carried 5 | 2 2 2 2 2 4 4 4 4 4 4 4 4 4 4 3 5 5 5 5 Average Carried 3 | 1 1 1 1 1 2 3 3 3 4 3 3 3 4 3 2 3 4 4 4 Final Capacity 5 | 2 2 2 2 2 4 4 4 4 4 4 4 4 4 4 4 5 5 5 5 Final Carried 5 | . 2 2 2 2 4 4 3 4 4 3 4 4 4 3 2 5 4 5 5 Class Distribution -------------------- 49% | Hacker-Assassin 11% | Mutant 8% | Generator-Assassin 5% | Skirmisher 4% | Bothacker-Assassin 4% | Hacker-Tank 3% | Scavenger-Assassin 3% | Hacker-Skirmisher 3% | Scavenger-Tank Dominant Class ---------------- Mutant | -10/Materials Mutant | -10/Mines Skirmisher | -9/Materials Skirmisher | -8/Materials Hacker-Tank | -8/Garrison Hacker-Tank | -8/Materials Hacker-Assassin | -7/Factory Hacker-Assassin | -7/Garrison Hacker-Assassin | -7/Factory Hacker-Assassin | -7/Garrison Hacker-Assassin | -6/Factory Hacker-Assassin | -6/Garrison Hacker-Assassin | -6/Factory Hacker-Assassin | -6/Garrison Hacker-Assassin | -5/Factory Hacker-Assassin | -5/Garrison Hacker-Assassin | -4/Factory Hacker-Assassin | -4/Garrison Generator-Assassin | -3/Research Resources | -11 -10 -10 -9 -8 -8 -8 -7 -7 -7 -7 -6 -6 -6 -6 -5 -5 -4 -4 -3 ----------- Run | Scr Mat Min Mat Mat Gar Mat Fac Gar Fac Gar Fac Gar Fac Gar Fac Gar Fac Gar Res Matter Collected 8186 | 272 74 256 110 110 30 539 839 525 230 381 200 334 . 179 49 536 104 948 2470 Remotely 4518 | 123 74 256 110 110 30 539 751 55 . . . . . . . . . . 2470 Salvage Created 11821 | 85 224 297 1004 552 1005 912 592 533 261 697 328 509 . 372 152 693 113 750 2742 Parts 626 | 6 12 38 50 35 35 57 40 47 20 33 10 26 . 27 6 49 11 29 95 Haulers Intercepted 11 | . 1 . 2 2 . 3 . . . . . . . . . . . . 3 Recyclers Shooed 6 | 1 1 . . 1 . . . . . . . . . . . . . . 3 Parts Field Recycled . | . . . . . . . . . . . . . . . . . . . . Retrieved Matter . | . . . . . . . . . . . . . . . . . . . . Parts Self-Destructed . | . . . . . . . . . . . . . . . . . . . . Prevented . | . . . . . . . . . . . . . . . . . . . . Kills | -11 -10 -10 -9 -8 -8 -8 -7 -7 -7 -7 -6 -6 -6 -6 -5 -5 -4 -4 -3 ------- Run | Scr Mat Min Mat Mat Gar Mat Fac Gar Fac Gar Fac Gar Fac Gar Fac Gar Fac Gar Res Combat Hostiles Destroyed 310 | . 6 16 18 12 27 20 24 29 9 29 10 16 . 13 4 18 6 20 33 Melee 1 | . . . . . . . . . 1 . . . . . . . . . . Guns 160 | . 6 16 14 8 27 7 3 5 4 12 2 5 . 13 4 18 3 13 . Cannons 119 | . . . 2 1 . 13 13 19 4 13 4 11 . . . . 3 6 30 AOE 21 | . . . 1 . . . 7 4 . 3 4 . . . . . . . 2 Classes Destroyed 19 | 2 4 1 1 1 1 2 2 . . . . 2 . 1 . 2 . . . Worker 16 | . 1 2 . 2 . 2 2 . . . 2 . . . . . . . 5 Builder 14 | . 1 . 4 1 . 1 4 . . . . . . . . . 1 . 2 Tunneler 2 | 1 . . . . . . 1 . . . . . . . . . . . . Hauler 11 | . 1 . 2 2 . 3 . . . . . . . . . . . . 3 Recycler 16 | 1 1 . 4 1 . 1 . . 1 . . . . . . . . . 7 Operator 4 | . . . . . . . 1 . 2 . . . . . . . . . 1 Watcher 11 | . . . . . . 4 1 . . . . 1 . . . . 1 . 4 Swarmer 93 | . 6 12 4 3 11 4 7 5 . 4 . 6 . 7 . 6 5 9 4 Cutter 1 | . . . . . . . . . . . . 1 . . . . . . . Saboteur 2 | . . . . . . . . . . . . . . 1 . . . . 1 Grunt 132 | . . 4 12 5 12 7 9 22 6 20 8 2 . 5 4 7 . . 9 Brawler 3 | . . . . . . 1 . . . . . . . . . . 1 . 1 Duelist 7 | . . . . . 1 . 1 1 . 1 . . . . . 1 . . 2 Protector 2 | . . . . . . . . . . . . . . . . 1 . . 1 Sentry 40 | . . . 2 3 2 6 4 . 3 4 1 6 . . . 1 . 8 . Demolisher 1 | . . . . . . . . . . . . . . . . 1 . . . Hunter 14 | . . . . 1 1 2 2 . . . . . . . . . . 2 6 Programmer 12 | . . . . . . . 1 1 . . 1 . . . . . . . 9 Behemoth 3 | . . . . . . . . . . . . 1 . . . 1 . 1 . Best Kill Streak 16 | 2 3 10 16 10 6 7 6 14 4 8 5 5 . 4 2 5 7 4 9 Combat Bots Only 14 | . 3 8 6 4 6 4 6 14 3 8 5 5 . 4 2 5 5 4 8 Max Kills in Single Turn 4 | 1 2 2 2 2 2 2 3 2 1 3 4 1 . 3 2 2 2 2 3 Gunslinging 2 | . 1 1 1 . 1 . . . . . . . . 2 . 1 . . . Exploded 4 | . . . 1 . . . 3 2 . 2 4 . . . . . . . 1 Melee 1 | . . . . . . . . . 1 . . . . . . . . . . Uniques/NPCs Destroyed . | . . . . . . . . . . . . . . . . . . . . Combat | -11 -10 -10 -9 -8 -8 -8 -7 -7 -7 -7 -6 -6 -6 -6 -5 -5 -4 -4 -3 -------- Run | Scr Mat Min Mat Mat Gar Mat Fac Gar Fac Gar Fac Gar Fac Gar Fac Gar Fac Gar Res Damage Taken 11917 | . 122 474 665 213 846 274 807 1019 527 994 666 450 . 468 66 1037 271 1330 1688 Core 9114 | . 100 379 549 145 555 163 622 663 431 778 531 345 . 366 54 835 214 1046 1338 Absorbed by Shields 102 | . . . . . 20 . . . . 82 . . . . . . . . . Redirected to Core 7568 | . 63 286 408 122 416 148 475 630 296 620 455 313 . 324 41 678 173 945 1175 Regen/Repaired (Parts) 134 | . . . . . . . . . . . 134 . . . . . . . . Core Remaining (%) 89 | 100 . 99 67 . . 100 . . . 94 . . . 86 . 100 . 73 . Volleys Fired 640 | 4 24 36 35 25 51 36 39 45 23 49 22 27 . 21 8 49 16 52 78 Largest 4 | 2 2 2 4 4 4 4 4 3 2 3 3 3 . 3 3 3 3 3 4 Hottest 297 | 70 70 70 256 258 297 247 192 115 76 115 115 134 . 99 99 99 127 249 266 Shots Fired 1749 | 8 47 72 112 91 192 142 111 93 45 100 42 74 . 50 18 129 36 154 233 Gun 1056 | 8 47 72 94 88 190 66 20 45 22 49 19 23 . 46 15 120 20 98 14 Cannon 637 | . . . 16 . . 76 84 45 23 49 21 50 . . . . 10 56 207 Launcher 18 | . . . . . . . 7 3 . 2 1 . . . . . . . 5 Special 38 | . . . 2 3 2 . . . . . 1 1 . 4 3 9 6 . 7 Kinetic 1178 | 4 24 36 . . . 86 104 90 45 98 40 73 . 46 15 120 30 149 218 Thermal 445 | 4 23 36 58 91 192 41 . . . . . . . . . . . . . Explosive 13 | . . . . . . . 7 3 . 2 1 . . . . . . . . Electromagnetic 82 | . . . 54 . . 15 . . . . . . . . . . . 5 8 Robot Hit Streak 96 | 6 9 16 21 36 49 39 20 35 30 96 15 54 . 63 49 58 12 49 30 Robot Miss Streak 7 | . 3 2 2 1 2 2 3 4 7 2 4 3 . 1 . 3 3 2 3 Penetration Max 1 | . . . . . . 1 1 1 . 1 . . . . 1 1 . 1 1 Secondary Targets 33 | . 2 2 2 2 9 2 . . . . . . . 7 . 7 . . . Max Gunslinging Chain 2 | . 1 1 1 1 1 1 . . . . . . . 2 . 1 . . . Shots Hit Robots 1277 | 6 25 52 77 66 117 89 67 80 40 86 35 54 . 48 14 110 21 125 165 Core Hits 730 | 3 12 24 47 21 42 42 54 79 38 79 38 44 . 17 8 43 9 45 85 Critical Kills 14 | . . . 1 . . . . . . . . . . 1 2 6 2 2 . Critical Parts Destroyed 20 | . . . . . . . 3 1 1 1 1 . . 1 . 7 . 4 1 Critical Strikes 156 | . 1 2 5 7 9 8 16 6 3 9 5 6 . 2 2 15 4 19 37 Burn 25 | . 1 2 4 7 9 2 . . . . . . . . . . . . . Meltdown 1 | . . . 1 . . . . . . . . . . . . . . . . Destroy 29 | . . . . . . . . . . . . . . 2 2 15 2 7 1 Blast 91 | . . . . . . 6 12 5 2 8 4 6 . . . . 2 12 34 Corrupt 2 | . . . . . . . . . . . . . . . . . . . 2 Smash 8 | . . . . . . . 4 1 1 1 1 . . . . . . . . Melee Attacks 53 | . . . . . . . 6 11 3 7 2 2 . 3 . 3 . 12 4 Impact 49 | . . . . . . . 6 11 3 7 2 2 . 3 . 3 . 12 . Slashing . | . . . . . . . . . . . . . . . . . . . . Piercing 4 | . . . . . . . . . . . . . . . . . . . 4 Sneak Attacks 6 | . . . . . . . 3 . 1 . 2 . . . . . . . . Combat Hostiles . | . . . . . . . . . . . . . . . . . . . . Follow-up Attacks . | . . . . . . . . . . . . . . . . . . . . Damage Inflicted 39459 | 70 340 649 1552 1382 2313 2360 2991 2999 1329 2919 1905 1908 . 1232 338 2750 517 3788 8117 Guns 17436 | 70 340 643 1291 1358 2313 1139 242 744 516 882 378 453 . 1232 338 2750 297 1992 458 Cannons 17165 | . . . 140 . . 1130 1476 1312 672 1536 634 1455 . . . . 160 1796 6854 Explosions 3422 | . . . 121 . . 91 857 580 . 430 636 . . . . . 60 . 647 Melee 1391 | . . . . . . . 416 363 141 71 257 . . . . . . . 143 Ramming 21 | . . 6 . . . . . . . . . . . . . . . . 15 Kinetic 27900 | 45 238 365 . . . 1275 1718 2056 1188 2418 1012 1908 . 1232 338 2750 457 3646 7254 Thermal 5641 | 25 102 278 759 1382 2313 722 . . . . . . . . . . 60 . . Explosive 2503 | . . . . . . . 857 580 . 430 636 . . . . . . . . Electromagnetic 2003 | . . . 793 . . 363 . . . . . . . . . . . 142 705 Impact 1248 | . . . . . . . 416 363 141 71 257 . . . . . . . . Slashing . | . . . . . . . . . . . . . . . . . . . . Piercing 143 | . . . . . . . . . . . . . . . . . . . 143 Highest Corruption 3 | . . . . . . . . . . . . . . . . . . . 3 Average Corruption 2 | . . . . . . . . . . . . . . . . . . . 2 Corruption Purged . | . . . . . . . . . . . . . . . . . . . . Corruption Blocked . | . . . . . . . . . . . . . . . . . . . . Effects 29 | . . . . . . . . . . . . . . . . . . . 29 Message Errors 5 | . . . . . . . . . . . . . . . . . . . 5 Matter Fused 6 | . . . . . . . . . . . . . . . . . . . 6 Heat Flow Errors 2 | . . . . . . . . . . . . . . . . . . . 2 Energy Discharges 6 | . . . . . . . . . . . . . . . . . . . 6 Data Loss (minor) 4 | . . . . . . . . . . . . . . . . . . . 4 Data Loss (major) 3 | . . . . . . . . . . . . . . . . . . . 3 Misfires 1 | . . . . . . . . . . . . . . . . . . . 1 Weapon Failures 2 | . . . . . . . . . . . . . . . . . . . 2 Overload Shots . | . . . . . . . . . . . . . . . . . . . . Overflow Damage 1487 | . . . 8 . . 50 385 147 142 75 232 . . . . . . 14 434 Projectiles 609 | . . . . . . 50 42 19 24 26 . . . . . . . 14 434 Explosions 38 | . . . 8 . . . 4 20 . 6 . . . . . . . . . Melee 840 | . . . . . . . 339 108 118 43 232 . . . . . . . . Knockbacks 91 | . . . . . . 2 5 16 3 12 3 7 . . . . 1 2 40 Impact 5 | . . . . . . . 1 1 . 1 1 . . . . . . . 1 Kinetic 80 | . . . . . . 2 4 14 3 11 2 7 . . . . 1 2 34 Secondary 6 | . . . . . . . . 1 . . . . . . . . . . 5 Self-Inflicted Damage 283 | . . 3 61 . . 32 35 31 . 53 . . . . . . 39 . 29 Shots 14 | . . . 3 . . 1 1 1 . 2 . . . . . . 1 . 5 Rammed 2 | . . 1 . . . . . . . . . . . . . . . . 1 Targets Rammed 2 | . . 1 . . . . . . . . . . . . . . . . 1 Kicked . | . . . . . . . . . . . . . . . . . . . . Crushed . | . . . . . . . . . . . . . . . . . . . . Highest Temperature 464 | 18 144 312 192 403 421 135 16 . . . . . . 3 . 8 8 237 464 Average Temperature 110 | 10 54 167 60 162 123 38 14 . . . . . . 3 . 8 6 38 139 Received Heat Transfer 4097 | . . 234 162 99 378 99 102 720 243 604 273 96 . 306 27 279 21 189 265 Effects 19 | . . . . 2 3 . . . . . . . . . . . . . 14 Shutdowns 10 | . . . . 2 1 . . . . . . . . . . . . . 7 Energy Bleed 6 | . . . . . 2 . . . . . . . . . . . . . 4 Short Circuit 3 | . . . . . . . . . . . . . . . . . . . 3 Siege Activations . | . . . . . . . . . . . . . . . . . . . . Robots Corrupted 2 | . . . . . . . . . . . . . . . . . . 1 1 Combat Hostiles 2 | . . . . . . . . . . . . . . . . . . 1 1 Parts Fried 16 | . . . 4 . . . 5 . 2 . . . . . . . . 1 4 Impact Corruptions 28 | . . . . . . . 8 6 4 2 7 . . . . . . . 1 Robots Melted 4 | . . . 1 3 . . . . . . . . . . . . . . . Combat Hostiles 4 | . . . 1 3 . . . . . . . . . . . . . . . Parts Melted 33 | . . 2 2 9 17 3 . . . . . . . . . . . . . Heat Transferred 12536 | 74 370 962 1804 3047 4884 1345 . . . . . . . . . . 50 . . Parts Sabotaged . | . . . . . . . . . . . . . . . . . . . . Parts Stolen . | . . . . . . . . . . . . . . . . . . . . Parts Stripped . | . . . . . . . . . . . . . . . . . . . . Power Chain Reactions 5 | . . . 3 . . 2 . . . . . . . . . . . . . Missiles Intercepted . | . . . . . . . . . . . . . . . . . . . . Alert | -11 -10 -10 -9 -8 -8 -8 -7 -7 -7 -7 -6 -6 -6 -6 -5 -5 -4 -4 -3 ------- Run | Scr Mat Min Mat Mat Gar Mat Fac Gar Fac Gar Fac Gar Fac Gar Fac Gar Fac Gar Res Peak Influence 1473 | 10 196 399 621 479 912 975 948 1338 857 1427 1099 1245 566 902 618 1107 917 1473 1032 Initial 721 | . 5 64 27 151 187 382 380 548 608 461 648 678 566 348 410 368 503 566 721 Average 732 | 5 98 226 368 246 505 659 620 1082 704 1088 855 1094 566 670 483 769 780 1191 839 Maximum Alert Level 4 | . . 1 2 2 3 3 3 4 3 4 3 4 2 3 2 4 3 4 3 Low Security (%) 9 | 100 100 40 27 48 7 . . . . . . . . . . . . . . Level 1 10 | . . 59 23 37 31 16 10 . . . . . . 7 1 2 . . . Level 2 23 | . . . 48 13 26 42 59 12 47 19 31 7 100 46 98 29 22 3 9 Level 3 39 | . . . . . 34 41 30 22 52 22 68 28 . 46 . 58 77 32 90 Level 4 16 | . . . . . . . . 65 . 58 . 64 . . . 9 . 64 . Level 5 . | . . . . . . . . . . . . . . . . . . . . High Security . | . . . . . . . . . . . . . . . . . . . . Max Security . | . . . . . . . . . . . . . . . . . . . . Squads Dispatched 34 | . . . 5 2 . 2 5 . 3 . 6 . . . 1 . 1 . 9 Investigation 11 | . . . 2 . . 1 1 . 2 . 3 . . . . . . . 2 Extermination 4 | . . . . . . . 1 . . . . . . . . . . . 3 Reinforcement 13 | . . . 2 1 . 1 2 . 1 . 2 . . . 1 . 1 . 2 Assault 3 | . . . 1 . . . . . . . . . . . . . . . 2 Garrison 3 | . . . . 1 . . 1 . . . 1 . . . . . . . . Intercept . | . . . . . . . . . . . . . . . . . . . . Searches Triggered . | . . . . . . . . . . . . . . . . . . . . Construction Impeded 4 | . . . 1 . . . 2 . . . 1 . . . . . . . . Haulers Reinforced 2 | . . . . . . . . . . . 1 . . . . . . . 1 Active Scanning Responses . | . . . . . . . . . . . . . . . . . . . . Cargo Convoy Interrupts . | . . . . . . . . . . . . . . . . . . . . Stealth | -11 -10 -10 -9 -8 -8 -8 -7 -7 -7 -7 -6 -6 -6 -6 -5 -5 -4 -4 -3 --------- Run | Scr Mat Min Mat Mat Gar Mat Fac Gar Fac Gar Fac Gar Fac Gar Fac Gar Fac Gar Res Distress Signals 7 | . . 1 2 1 . 2 . . . . . 1 . . . . . . . Communications Jammed . | . . . . . . . . . . . . . . . . . . . . Distress Signals . | . . . . . . . . . . . . . . . . . . . . Times Spotted 435 | . 8 16 21 13 28 21 22 29 15 37 19 20 . 24 13 40 19 33 57 Peak Tracking Total 10 | . 4 6 5 7 5 3 4 7 3 9 8 8 . 4 6 10 6 5 7 Tactical Retreats 26 | . . 1 . . 1 1 1 1 1 4 . 1 . 2 2 3 2 4 2 Traps | -11 -10 -10 -9 -8 -8 -8 -7 -7 -7 -7 -6 -6 -6 -6 -5 -5 -4 -4 -3 ------- Run | Scr Mat Min Mat Mat Gar Mat Fac Gar Fac Gar Fac Gar Fac Gar Fac Gar Fac Gar Res Traps Triggered 41 | . . . . . 3 . 2 4 1 3 1 3 . 5 . 4 . 7 8 Indirectly 1 | . . . . . . . . . . . . . . . . . . . 1 Trap Hack Attempts . | . . . . . . . . . . . . . . . . . . . . Triggered . | . . . . . . . . . . . . . . . . . . . . Disarmed . | . . . . . . . . . . . . . . . . . . . . Reprogrammed . | . . . . . . . . . . . . . . . . . . . . Reused . | . . . . . . . . . . . . . . . . . . . . Traps Extracted . | . . . . . . . . . . . . . . . . . . . . Installed 5 | . . 4 1 . . . . . . . . . . . . . . . . Triggered 1 | . . . . . . . . . . . . . . . . . . . 1 Most Traps Carried 1 | . . 1 1 . . . . . . . . . . . . . . . . Machines | -11 -10 -10 -9 -8 -8 -8 -7 -7 -7 -7 -6 -6 -6 -6 -5 -5 -4 -4 -3 ---------- Run | Scr Mat Min Mat Mat Gar Mat Fac Gar Fac Gar Fac Gar Fac Gar Fac Gar Fac Gar Res Machines Disabled 51 | . . . 1 . 3 1 7 3 . 2 13 1 . 3 . 4 4 3 6 Max in Single Turn 4 | . . . 1 . 1 1 4 1 . 1 3 1 . 1 . 1 2 1 1 Garrison Relay 19 | . . . . . 3 . . 4 . 2 . 1 . 3 . 3 . 3 . Machines Sabotaged . | . . . . . . . . . . . . . . . . . . . . Garrisons Compromised . | . . . . . . . . . . . . . . . . . . . . Overloaded Fab Kills . | . . . . . . . . . . . . . . . . . . . . Hacking | -11 -10 -10 -9 -8 -8 -8 -7 -7 -7 -7 -6 -6 -6 -6 -5 -5 -4 -4 -3 --------- Run | Scr Mat Min Mat Mat Gar Mat Fac Gar Fac Gar Fac Gar Fac Gar Fac Gar Fac Gar Res Machines Accessed 36 | . 4 . 2 3 . 1 6 . 6 . 5 . 1 . 3 . 2 . 3 Terminals 22 | . 4 . 2 2 . 1 5 . 3 . 1 . . . 2 . 1 . 1 Fabricators 5 | . . . . . . . . . 2 . 2 . . . . . . . 1 Repair Stations 1 | . . . . . . . . . . . 1 . . . . . . . . Recycling Units . | . . . . . . . . . . . . . . . . . . . . Scanalyzers 1 | . . . . . . . . . . . . . . . . . . . 1 Garrison Access 7 | . . . . 1 . . 1 . 1 . 1 . 1 . 1 . 1 . . Total Hacks 77 | . 11 . 5 7 . 3 10 . 12 . 15 . 1 . 5 . 2 . 6 Successful 52 | . 9 . 2 4 . 3 6 . 7 . 12 . 1 . 4 . 2 . 2 Failed 25 | . 2 . 3 3 . . 4 . 5 . 3 . . . 1 . . . 4 Catastrophic . | . . . . . . . . . . . . . . . . . . . . Database Lockouts . | . . . . . . . . . . . . . . . . . . . . Manual 35 | . 8 . 5 5 . 1 8 . 4 . 1 . . . 2 . . . 1 Terminals 51 | . 11 . 5 6 . 3 9 . 7 . 4 . . . 4 . 1 . 1 Fabricators 11 | . . . . . . . . . 4 . 5 . . . . . . . 2 Repair Stations 5 | . . . . . . . . . . . 5 . . . . . . . . Recycling Units . | . . . . . . . . . . . . . . . . . . . . Scanalyzers 3 | . . . . . . . . . . . . . . . . . . . 3 Garrison Access 7 | . . . . 1 . . 1 . 1 . 1 . 1 . 1 . 1 . . Terminal Hacks 14 | . 2 . . 1 . 2 3 . 2 . 2 . . . 1 . 1 . . Record 2 | . . . . . . 1 . . . . 1 . . . . . . . . Part Schematic 3 | . . . . . . . . . 1 . 1 . . . . . 1 . . Robot Schematic 1 | . . . . . . . 1 . . . . . . . . . . . . Prototype ID Bank 3 | . 2 . . 1 . . . . . . . . . . . . . . . Open DSF 4 | . . . . . . . 2 . 1 . . . . . 1 . . . . Zone Layout 1 | . . . . . . 1 . . . . . . . . . . . . . Fabricator Hacks 8 | . . . . . . . . . 3 . 3 . . . . . . . 2 Load Schematic 3 | . . . . . . . . . 1 . 1 . . . . . . . 1 Build 5 | . . . . . . . . . 2 . 2 . . . . . . . 1 Repair Station Hacks 5 | . . . . . . . . . . . 5 . . . . . . . . Scan Component 3 | . . . . . . . . . . . 3 . . . . . . . . Repair 2 | . . . . . . . . . . . 2 . . . . . . . . Recycling Unit Hacks . | . . . . . . . . . . . . . . . . . . . . Scanalyzer . | . . . . . . . . . . . . . . . . . . . . Garrison Access Hacks 7 | . . . . 1 . . 1 . 1 . 1 . 1 . 1 . 1 . . Unlock Access 7 | . . . . 1 . . 1 . 1 . 1 . 1 . 1 . 1 . . Unauthorized Hacks 16 | . 6 . 2 2 . 1 2 . 1 . 1 . . . 1 . . . . Terminals 16 | . 6 . 2 2 . 1 2 . 1 . 1 . . . 1 . . . . Assimilate 5 | . 2 . 1 . . . . . 1 . 1 . . . . . . . . Botnet 11 | . 4 . 1 2 . 1 2 . . . . . . . 1 . . . . Fabricators . | . . . . . . . . . . . . . . . . . . . . Repair Stations . | . . . . . . . . . . . . . . . . . . . . Recycling Units . | . . . . . . . . . . . . . . . . . . . . Scanalyzers . | . . . . . . . . . . . . . . . . . . . . Garrison Access . | . . . . . . . . . . . . . . . . . . . . Data Cores Recovered . | . . . . . . . . . . . . . . . . . . . . Used . | . . . . . . . . . . . . . . . . . . . . Hacking Detections 29 | . 2 . 2 3 . 1 5 . 5 . 5 . . . 2 . 1 . 3 Full Trace Events 10 | . . . 1 . . 1 1 . 2 . 3 . . . . . . . 2 Feedback Events . | . . . . . . . . . . . . . . . . . . . . Feedback Blocked . | . . . . . . . . . . . . . . . . . . . . Robot Schematics Acquired 1 | . . . . . . . 1 . . . . . . . . . . . . Robots Built 6 | . . . . . . . . . 3 . 3 . . . . . . . . Authchips . | . . . . . . . . . . . . . . . . . . . . Time 210 | . . . . . . . . . 166 . 44 . . . . . . . . Total Robot Build Rating 24 | . . . . . . . . . 12 . 12 . . . . . . . . Part Schematics Acquired 3 | . . . . . . . . . 1 . 1 . . . . . 1 . . Parts Built 4 | . . . . . . . . . . . 2 . . . . . . . 2 Authchips . | . . . . . . . . . . . . . . . . . . . . Time 105 | . . . . . . . . . . . 47 . . . . . . . 58 Total Part Build Rating 24 | . . . . . . . . . . . 10 . . . . . . . 14 Parts Repaired 2 | . . . . . . . . . . . 2 . . . . . . . . Time 41 | . . . . . . . . . . . 41 . . . . . . . . Parts Recycled . | . . . . . . . . . . . . . . . . . . . . Recycled Matter . | . . . . . . . . . . . . . . . . . . . . Retrieved Matter . | . . . . . . . . . . . . . . . . . . . . Retrieved Components . | . . . . . . . . . . . . . . . . . . . . Parts Scanalyzed . | . . . . . . . . . . . . . . . . . . . . Part Schematics Acquired . | . . . . . . . . . . . . . . . . . . . . Parts Damaged . | . . . . . . . . . . . . . . . . . . . . Bothacking | -11 -10 -10 -9 -8 -8 -8 -7 -7 -7 -7 -6 -6 -6 -6 -5 -5 -4 -4 -3 ------------ Run | Scr Mat Min Mat Mat Gar Mat Fac Gar Fac Gar Fac Gar Fac Gar Fac Gar Fac Gar Res Used RIF Installer 7 | . . . . . 1 . . 1 . 1 . 1 . 1 . 1 . 1 . Hotswap 1 | . . . . . . . . . . . . . . . . . . 1 . Command Fork 1 | . . . . . . . . . . . . 1 . . . . . . . Zone Cloak 1 | . . . . . . . . . . 1 . . . . . . . . . Watcher Feeds 1 | . . . . . . . . . . . . . . 1 . . . . . Patrol Navigation 1 | . . . . . . . . 1 . . . . . . . . . . . Autoassimilate 1 | . . . . . . . . . . . . . . . . 1 . . . Robots Hacked 31 | . . . . . . . . . . . 1 1 . 4 3 8 6 . 8 Non-combat . | . . . . . . . . . . . . . . . . . . . . Combat 31 | . . . . . . . . . . . 1 1 . 4 3 8 6 . 8 Autoassimilated 1 | . . . . . . . . . . . . . . . . . . . 1 Robot Hacks Applied 30 | . . . . . . . . . . . 1 1 . 4 3 8 6 . 7 parse_system 2 | . . . . . . . . . . . . . . . . 1 1 . . amplify_resonance 1 | . . . . . . . . . . . . 1 . . . . . . . go_dormant 1 | . . . . . . . . . . . . . . . . 1 . . . formatsys_high 26 | . . . . . . . . . . . 1 . . 4 3 6 5 . 7 Relay Couplers Released 34 | . . . . . 6 . . 8 . 4 . 2 . 5 . 5 . 4 . Machine Destruction 34 | . . . . . 6 . . 8 . 4 . 2 . 5 . 5 . 4 . Attached 12 | . . . . . . . . 2 . . 1 1 . 2 . 2 1 1 2 Fabnet Peak Effective % . | . . . . . . . . . . . . . . . . . . . . Robots Rewired . | . . . . . . . . . . . . . . . . . . . . Allies Hacked . | . . . . . . . . . . . . . . . . . . . . Hacks Repelled . | . . . . . . . . . . . . . . . . . . . . Allies | -11 -10 -10 -9 -8 -8 -8 -7 -7 -7 -7 -6 -6 -6 -6 -5 -5 -4 -4 -3 -------- Run | Scr Mat Min Mat Mat Gar Mat Fac Gar Fac Gar Fac Gar Fac Gar Fac Gar Fac Gar Res Total Allies 38 | . . 2 . . . . . . 3 . 4 . . 5 4 6 5 . 9 Largest Group 8 | . . 2 2 . . . . . 3 . 4 1 . 4 7 8 5 5 7 Highest-Rated Group 340 | . . 42 42 . . . . . 90 . 175 85 . 125 250 259 253 253 340 Highest-Rated Ally 85 | . . 31 31 . . . . . 30 . 85 85 . 32 49 47 56 56 58 Total Orders . | . . . . . . . . . . . . . . . . . . . . Ally Attacks 208 | . . . 1 . . . . . 10 . 23 8 . 12 11 59 9 40 35 Total Damage 7407 | . . . . . . . . . 257 . 2107 350 . 503 188 1409 260 1301 1032 Kills 49 | . . . . . . . . . 2 . 11 6 . 3 1 13 . 9 4 Allies Corrupted . | . . . . . . . . . . . . . . . . . . . . Allies Melted . | . . . . . . . . . . . . . . . . . . . . Intel | -11 -10 -10 -9 -8 -8 -8 -7 -7 -7 -7 -6 -6 -6 -6 -5 -5 -4 -4 -3 ------- Run | Scr Mat Min Mat Mat Gar Mat Fac Gar Fac Gar Fac Gar Fac Gar Fac Gar Fac Gar Res Robot Analysis Total . | . . . . . . . . . . . . . . . . . . . . Derelict Logs Recovered 1 | . . 1 . . . . . . . . . . . . . . . . . Drone Launches . | . . . . . . . . . . . . . . . . . . . . Drone Recoveries . | . . . . . . . . . . . . . . . . . . . . Exploration | -11 -10 -10 -9 -8 -8 -8 -7 -7 -7 -7 -6 -6 -6 -6 -5 -5 -4 -4 -3 ------------- Run | Scr Mat Min Mat Mat Gar Mat Fac Gar Fac Gar Fac Gar Fac Gar Fac Gar Fac Gar Res Turns Passed 13258 | 130 345 1036 415 432 839 557 852 772 524 695 529 690 111 675 245 913 239 1228 2031 Spaces Moved 8265 | 68 186 726 238 281 490 380 641 532 324 349 296 422 81 401 148 523 171 766 1242 Core 6 | 4 1 . . . . . . . . . . . . . . . . . 1 Treads 472 | 64 119 . . . . . . . . 22 . . . . . . . . 267 Legs . | . . . . . . . . . . . . . . . . . . . . Wheels 7787 | . 66 726 238 281 490 380 641 532 324 327 296 422 81 401 148 523 171 766 974 Hover . | . . . . . . . . . . . . . . . . . . . . Flight . | . . . . . . . . . . . . . . . . . . . . Fastest Speed 50 | 50 100 100 100 100 100 100 100 100 100 100 115 115 115 115 115 115 115 115 112 Average Speed 116 | 153 138 100 100 100 100 101 101 101 102 118 129 129 129 129 123 122 115 128 132 Slowest Speed 450 | 160 160 100 100 100 100 115 115 115 115 240 130 130 130 130 130 130 115 145 450 Overloaded Moves . | . . . . . . . . . . . . . . . . . . . . Propulsion Burnouts . | . . . . . . . . . . . . . . . . . . . . Robots Hopped . | . . . . . . . . . . . . . . . . . . . . Cave-ins Triggered 2 | . . . 1 . . . 1 . . . . . . . . . . . . Exploration Rate (%) 40 | 5 46 98 27 29 76 45 24 72 9 68 8 64 3 60 2 62 4 72 27 Regions Visited 19 Branch Regions 1 Pre-discovered Areas . | . . . . . . . . . . . . . . . . . . . . Known Exits Taken 7 | . . . . 1 . . 1 . 1 . 1 . 1 . 1 . 1 . . Unknown Exits Taken 5 | 1 1 1 1 . . 1 . . . . . . . . . . . . . Scrap Searched 1 | . . 1 . . . . . . . . . . . . . . . . . Spaces Dug 13 | . . . 2 2 . . 7 . 1 . . . . . . . . . 1 Terrain Destroyed 429 | . . . 17 2 . 35 128 39 4 25 41 5 . . 4 2 47 15 65 Melee 3 | . . . . . . . 1 . 1 . . . . . . . . . 1 Projectile 168 | . . . 2 2 . 30 23 1 3 . 2 5 . . 4 2 15 15 64 AOE 258 | . . . 15 . . 5 104 38 . 25 39 . . . . . 32 . . Terrain Rammed . | . . . . . . . . . . . . . . . . . . . . Walls Destroyed . | . . . . . . . . . . . . . . . . . . . . Machines Disabled . | . . . . . . . . . . . . . . . . . . . . Actions | -11 -10 -10 -9 -8 -8 -8 -7 -7 -7 -7 -6 -6 -6 -6 -5 -5 -4 -4 -3 --------- Run | Scr Mat Min Mat Mat Gar Mat Fac Gar Fac Gar Fac Gar Fac Gar Fac Gar Fac Gar Res Total 10589 | 84 227 964 332 368 713 460 753 651 464 518 398 504 87 513 197 718 199 915 1524 Wait 706 | . 3 178 14 23 119 10 7 1 90 54 44 4 . 2 30 55 3 . 69 Move 8250 | 67 185 725 237 281 489 379 641 531 324 347 296 420 81 400 147 522 171 765 1242 Hop . | . . . . . . . . . . . . . . . . . . . . Pick Up 96 | 5 4 1 6 3 3 2 6 1 . 1 7 7 1 3 1 12 1 10 22 Fast Attach 68 | 3 2 . 5 5 1 8 4 3 3 1 1 2 2 2 . 3 1 3 19 Attach 57 | 5 . 1 4 2 . . 3 . . 2 4 3 . 1 2 6 1 3 20 Detach . | . . . . . . . . . . . . . . . . . . . . Swap 26 | . . . 2 4 2 1 2 . . . 2 1 . 2 . 2 . 3 5 Drop 109 | . 4 . 8 8 2 9 9 . 2 . 4 6 3 6 1 6 3 8 30 Fire 640 | 4 24 36 35 25 51 36 39 45 23 49 22 27 . 21 8 49 16 52 78 Melee 53 | . . . . . . . 6 11 3 7 2 2 . 3 . 3 . 12 4 Ram 2 | . . 1 . . . . . . . . . . . . . . . . 1 Kick . | . . . . . . . . . . . . . . . . . . . . Crush . | . . . . . . . . . . . . . . . . . . . . Escape Stasis 183 | . . . . . 22 . 8 32 . 17 . 24 . 40 . 24 . 16 . Rewire 5 | . . . . . . . . . . . . . . 1 . . 1 . 3 Trap 5 | . . 4 1 . . . . . . . . . . . . . . . . Miscellaneous 389 | . 5 18 20 17 24 15 28 27 19 40 16 8 . 32 8 36 2 43 31 Route ------- -11/Scrapyard -10/Materials -10/Mines (discovered 2 exits: *Mat x2) -9/Materials -8/Materials -8/Garrison (discovered 3 exits: *Mat x3) -8/Materials (discovered 3 exits: *Fac / [*Sto x2]) -7/Factory -7/Garrison (discovered 3 exits: *Fac x3) -7/Factory -7/Garrison (discovered 2 exits: *Fac x2) -6/Factory -6/Garrison (discovered 3 exits: *Fac x3) -6/Factory (discovered 2 exits: *Fac / Gar) -6/Garrison (discovered 2 exits: *Fac x2) -5/Factory -5/Garrison (discovered 2 exits: *Fac x2) -4/Factory -4/Garrison (discovered 2 exits: *Res x2) -3/Research History --------- Turn | Location | Event 8 | -11/Scrapyard | Upgraded with Power slot (x1) 8 | -11/Scrapyard | Upgraded with Propulsion slot (x1) 8 | -11/Scrapyard | Upgraded with Utility slot (x1) 8 | -11/Scrapyard | Upgraded with Weapon slot (x1) 16 | -11/Scrapyard | Discovered new exit (range 16) 131 | -11/Scrapyard | Entered Materials 317 | -10/Materials | Build established: Mutant 419 | -10/Materials | Discovered new exit (range 16) 476 | -10/Materials | Entered Mines 476 | -10/Mines | Discovered new exit (range 9) 508 | -10/Mines | Reached level 2 565 | -10/Mines | Upgraded with Utility slot (x1) 570 | -10/Mines | Destroyed 8 combat bots 700 | -10/Mines | Found a hidden stash of uninstalled traps 964 | -10/Mines | Learned 4 Materials zone layouts 1008 | -10/Mines | Reached level 3 1014 | -10/Mines | Upgraded with Weapon slot (x1) 1460 | -10/Mines | Discovered new exit (range 9) 1512 | -10/Mines | Entered Materials 1512 | -9/Materials | Accompanied by 2 allies 1514 | -9/Materials | Reached level 4 1520 | -9/Materials | Led the pair of lost Derelicts to an unsafe place 1646 | -9/Materials | Reached level 5 1661 | -9/Materials | Upgraded with Weapon slot (x1) 1736 | -9/Materials | Crushed by falling debris 1736 | -9/Materials | Core integrity fell below 50% 1810 | -9/Materials | Build established: Skirmisher 1868 | -9/Materials | Discovered new exit (range 15) 1887 | -9/Materials | Reached level 6 1890 | -9/Materials | Upgraded with Utility slot (x1) 1912 | -9/Materials | First assault squad dispatched 1927 | -9/Materials | Entered another Materials area 1929 | -8/Materials | Reached level 7 1929 | -8/Materials | Upgraded with Utility slot (x1) 2267 | -8/Materials | Reached level 8 2276 | -8/Materials | Upgraded with Propulsion slot (x1) 2312 | -8/Materials | Garrison activated, responded to threat 2359 | -8/Materials | Identified exit to Garrison 2359 | -8/Materials | Entered Garrison 2365 | -8/Garrison | Installed Relay Interface Framework 2414 | -8/Garrison | Triggered checkpoint 2419 | -8/Garrison | Reached level 9 2484 | -8/Garrison | Triggered checkpoint 2595 | -8/Garrison | Discovered new exit (range 9) 2614 | -8/Garrison | Triggered checkpoint 2670 | -8/Garrison | Triggered checkpoint 2683 | -8/Garrison | Garrison Relay disabled 2735 | -8/Garrison | Build established: Scavenger-Tank 2751 | -8/Garrison | Triggered checkpoint 2758 | -8/Garrison | Triggered checkpoint 2785 | -8/Garrison | Reached level 10 2876 | -8/Garrison | Triggered checkpoint 2906 | -8/Garrison | Garrison Relay disabled 2944 | -8/Garrison | Discovered new exit (range 9) 3044 | -8/Garrison | Triggered checkpoint 3077 | -8/Garrison | Build established: Hacker-Tank 3116 | -8/Garrison | Triggered checkpoint 3116 | -8/Garrison | Reached level 11 3160 | -8/Garrison | Garrison Relay disabled 3186 | -8/Garrison | Discovered new exit (range 12) 3198 | -8/Garrison | Entered Materials 3254 | -8/Materials | Discovered new exit (range 15) 3287 | -8/Materials | Discovered new exit (range 16) 3540 | -8/Materials | Reached level 12 3737 | -8/Materials | Discovered new exit (range 16) 3755 | -8/Materials | Entered Factory 3757 | -7/Factory | Reached level 13 3846 | -7/Factory | Build established: Hacker-Skirmisher 3989 | -7/Factory | Reached level 14 4001 | -7/Factory | Upgraded with Utility slot (x1) 4343 | -7/Factory | Crushed by falling debris 4350 | -7/Factory | Core integrity fell below 50% 4401 | -7/Factory | Build established: Hacker-Assassin 4554 | -7/Factory | Garrison activated, responded to threat 4557 | -7/Factory | Reached level 15 4568 | -7/Factory | Upgraded with Utility slot (x1) 4607 | -7/Factory | Identified exit to Garrison 4607 | -7/Factory | Entered Garrison 4616 | -7/Garrison | Triggered checkpoint 4653 | -7/Garrison | Garrison Relay disabled 4736 | -7/Garrison | Reached level 16 4738 | -7/Garrison | Triggered checkpoint 4739 | -7/Garrison | Upgraded with Utility slot (x1) 4764 | -7/Garrison | Triggered checkpoint 4793 | -7/Garrison | Destroyed 14 combat bots 4848 | -7/Garrison | Triggered checkpoint 4877 | -7/Garrison | Garrison Relay disabled 4914 | -7/Garrison | Discovered new exit (range 13) 4925 | -7/Garrison | Identified exit to Factory 5070 | -7/Garrison | Triggered checkpoint 5072 | -7/Garrison | Garrison Relay disabled 5141 | -7/Garrison | Discovered exit to Factory (range 19) 5148 | -7/Garrison | Triggered checkpoint 5220 | -7/Garrison | Triggered checkpoint 5282 | -7/Garrison | Triggered checkpoint 5325 | -7/Garrison | Garrison Relay disabled 5353 | -7/Garrison | Discovered exit to Factory (range 12) 5375 | -7/Garrison | Expanded RIF knowledge: Patrol Navigation 5379 | -7/Garrison | Entered Factory 5473 | -7/Factory | Fabricated L-41 Fighter (x3) 5903 | -7/Factory | Identified exit to Garrison 5903 | -7/Factory | Entered Garrison 6015 | -7/Garrison | Reached level 17 6043 | -7/Garrison | Upgraded with Weapon slot (x1) 6096 | -7/Garrison | Triggered checkpoint 6121 | -7/Garrison | Garrison Relay disabled 6211 | -7/Garrison | Destroyed 8 combat bots 6214 | -7/Garrison | Triggered checkpoint 6275 | -7/Garrison | Destroyed 7 combat bots 6278 | -7/Garrison | Triggered checkpoint 6350 | -7/Garrison | Triggered checkpoint 6405 | -7/Garrison | Garrison Relay disabled 6460 | -7/Garrison | Discovered new exit (range 13) 6475 | -7/Garrison | Identified exit to Factory 6572 | -7/Garrison | Discovered exit to Factory (range 10) 6592 | -7/Garrison | Expanded RIF knowledge: Zone Cloak 6598 | -7/Garrison | Entered Factory 6600 | -6/Factory | Reached level 18 6653 | -6/Factory | Repaired Imp. Terrain Scanner 6662 | -6/Factory | Fabricated L-41 Fighter (x3) 6726 | -6/Factory | Repaired Flak Gun 7012 | -6/Factory | Spotted B-75 Beast 7027 | -6/Factory | Assimilated Beast 5a with formatsys_high 7071 | -6/Factory | Garrison activated, responded to threat 7080 | -6/Factory | Reached level 19 7110 | -6/Factory | Fabricated Magnetic Acceleration Cannon (x2) 7127 | -6/Factory | Identified exit to Garrison 7127 | -6/Factory | Entered Garrison 7127 | -6/Garrison | Accompanied by 1 ally 7177 | -6/Garrison | Spotted B-75 Beast 7180 | -6/Garrison | Triggered checkpoint 7184 | -6/Garrison | Core integrity fell below 50% 7197 | -6/Garrison | Destroyed B-75 Beast 7230 | -6/Garrison | Triggered checkpoint 7290 | -6/Garrison | Triggered checkpoint 7380 | -6/Garrison | Discovered new exit (range 17) 7504 | -6/Garrison | Triggered checkpoint 7524 | -6/Garrison | Garrison Relay disabled 7524 | -6/Garrison | Reached level 20 7546 | -6/Garrison | Upgraded with Utility slot (x1) 7633 | -6/Garrison | Discovered new exit (range 9) 7686 | -6/Garrison | Triggered checkpoint 7783 | -6/Garrison | Discovered new exit (range 13) 7799 | -6/Garrison | Identified exit to Factory 7808 | -6/Garrison | Expanded RIF knowledge: Command Fork 7817 | -6/Garrison | Entered Factory 7822 | -6/Factory | Discovered new exit (range 11) 7928 | -6/Factory | Identified exit to Garrison 7928 | -6/Factory | Entered Garrison 7952 | -6/Garrison | Triggered checkpoint 7979 | -6/Garrison | Garrison Relay disabled 8106 | -6/Garrison | Triggered checkpoint 8136 | -6/Garrison | Triggered checkpoint 8140 | -6/Garrison | Triggered checkpoint 8199 | -6/Garrison | Discovered new exit (range 8) 8248 | -6/Garrison | Triggered checkpoint 8292 | -6/Garrison | Garrison Relay disabled 8450 | -6/Garrison | Triggered checkpoint 8462 | -6/Garrison | Garrison Relay disabled 8540 | -6/Garrison | Discovered new exit (range 17) 8548 | -6/Garrison | Triggered checkpoint 8578 | -6/Garrison | Identified exit to Factory 8587 | -6/Garrison | Expanded RIF knowledge: Watcher Feeds 8603 | -6/Garrison | Entered Factory 8603 | -5/Factory | Accompanied by 4 allies 8605 | -5/Factory | Reached level 21 8833 | -5/Factory | Identified exit to Garrison 8848 | -5/Factory | Entered Garrison 8848 | -5/Garrison | Accompanied by 6 allies 8928 | -5/Garrison | Triggered checkpoint 8942 | -5/Garrison | Garrison Relay disabled 9098 | -5/Garrison | Spotted B-75 Beast 9105 | -5/Garrison | Reached level 22 9118 | -5/Garrison | Allies destroyed B-75 Beast 9218 | -5/Garrison | Spotted B-75 Beast 9225 | -5/Garrison | Triggered checkpoint 9230 | -5/Garrison | Triggered checkpoint 9244 | -5/Garrison | Core integrity fell below 50% 9252 | -5/Garrison | Triggered checkpoint 9262 | -5/Garrison | Destroyed B-75 Beast 9366 | -5/Garrison | Triggered checkpoint 9372 | -5/Garrison | Garrison Relay disabled 9511 | -5/Garrison | Discovered new exit (range 8) 9602 | -5/Garrison | Triggered checkpoint 9658 | -5/Garrison | Triggered checkpoint 9678 | -5/Garrison | Garrison Relay disabled 9703 | -5/Garrison | Discovered new exit (range 17) 9722 | -5/Garrison | Identified exit to Factory 9730 | -5/Garrison | Expanded RIF knowledge: Autoassimilate 9761 | -5/Garrison | Entered Factory 9763 | -4/Factory | Reached level 23 9820 | -4/Factory | Reached level 24 9828 | -4/Factory | Upgraded with Utility slot (x1) 10000 | -4/Factory | Identified exit to Garrison 10000 | -4/Factory | Entered Garrison 10000 | -4/Garrison | Accompanied by 5 allies 10088 | -4/Garrison | Triggered checkpoint 10103 | -4/Garrison | Garrison Relay disabled 10185 | -4/Garrison | Spotted B-86 Titan 10196 | -4/Garrison | Triggered checkpoint 10200 | -4/Garrison | Reached level 25 10204 | -4/Garrison | Triggered checkpoint 10206 | -4/Garrison | Triggered checkpoint 10214 | -4/Garrison | Core integrity fell below 50% 10214 | -4/Garrison | Destroyed B-86 Titan 10233 | -4/Garrison | Triggered checkpoint 10562 | -4/Garrison | Discovered new exit (range 12) 10604 | -4/Garrison | Triggered checkpoint 10689 | -4/Garrison | Garrison Relay disabled 10735 | -4/Garrison | Identified exit to Research 10745 | -4/Garrison | Expanded RIF knowledge: Hotswap 10828 | -4/Garrison | Discovered exit to Research (range 12) 10898 | -4/Garrison | Triggered checkpoint 10916 | -4/Garrison | Garrison Relay disabled 11142 | -4/Garrison | Spotted B-86 Titan 11142 | -4/Garrison | Spotted B-86 Titan 11221 | -4/Garrison | Build established: Bothacker-Assassin 11228 | -4/Garrison | Entered Research 11230 | -3/Research | Reached level 26 11312 | -3/Research | Fabricated Hardcell Cannon (x2) 11651 | -3/Research | Reached level 27 11660 | -3/Research | Upgraded with Power slot (x1) 11660 | -3/Research | Upgraded with Weapon slot (x1) 11712 | -3/Research | Core integrity fell below 50% 12182 | -3/Research | Found Prototype Launcher 12183 | -3/Research | Identified Adv. Micro-nuke Launcher 12228 | -3/Research | First assault squad dispatched 12280 | -3/Research | Reached level 28 12303 | -3/Research | Destroyed 8 combat bots 12638 | -3/Research | Build established: Generator-Assassin 12742 | -3/Research | Upgraded with Propulsion slot (x1) 12873 | -3/Research | Found Gamma Bomb Array 13251 | -3/Research | Core integrity fell below 20% 13259 | -3/Research | Destroyed by B-74 Champion with Powered Hammer Last Messages --------------- 13244_ G-67 Veteran knocked back. 13244_ Adv. Heat Sink fried. 13244_ G-67 Veteran destroyed. 13244_ G-67 Veteran misfires. 13245_ Acquired 49 matter. 13245_ Acquired 106 matter. 13245_ Acquired 8 matter. 13245_ Acquired 4 matter. 13246_ Subatomic Condenser disabled. 13247_ G-67 Veteran system terminally corrupted. 13247_ Adv. Heat Sink fried. 13247_ Lgt. Antimatter Reactor fried. 13247_ G-67 Veteran IFF system glitched. 13248_ Acquired 54 matter. 13248_ OBX>L%9FG>G> GRMLTWI%FZ3 13249_ Acquired 1 matter. 13251_ K-01 Serf collects debris. 13252_ Acquired 1 matter. 13257_ K-01 Serf collects debris. 13258_ Acquired 1 matter. Map ----- +----------------------------------------------------+ | ############ ?#???????????????????????????? | | ############ ?????????????????????????????? | | ##############+####???????????????????????????? | | ? ?????????????????????????? | | ????????????????????????? | | ################?##+?#????????????????????????? | | ########### """"" ?????????????????????????? | | # ## """"" #????????????????????????? | | # * ## """"" ? ???????????????????????? | | # "" ## #??? ??#?????????????????? | | + """ ## # ? ????????????????????? | | # "F ## # ? #?????????????????? | | # """[ ## ####???# ? ?????????????? | | # ""[ #########################?#??????????? | | # | ###### / +??????????? | | # ###### # #??????????? | | ############### """ # #??????????? | | # """" # """ # ????????? | | # """" # """ #??????????? | | # """ # ! "" +? ????????? | | # #[ = # ????????? | | ###+###### # #=* # ?????????? | | # ## u # #=% # ????????? | | # ## ###+#####=[[ u""" # ???????? | | # "" ## bg g """ # ????????? | | # """ + @kb """ ####???????? | | + "T ## #?###??????? | | # """ ## ####???????? | | # "" ##### ########## ####?#?????? | | # ##### # # """ #######????? | | #! ##### # [ # """ ####???#???? | | # ##### # "" + """ ######?#?#?? | | # ##### # """ # ########???? | | #############t# "F # ###########? | | ############# # """ # ########?#?# | | ############# # "" # #############?##?## | | ############# # # ###########?######? | | ##+############# # # #################?? | | ? ############+########## ###########? | | ??? ########## # ############ | | ? ##?####### # ############ | | ? ########## # ############ | | ????#??####### ######## ########?#?? | | ?? ###?###### ######## ##########?# | | ??#######?#### ######## ############ | | ??###?######## ] ######## ############ | | ???####?###### ## # # | | ?????######### ## # # | | ?????######### ## # # | | ?????######### ## # # | +----------------------------------------------------+ Best States ------------- Heat Dissipation 112 Energy Generation 93 Energy Capacity 505 Matter Stores 600 Matter Capacity 600 Sight Range 20 Robot Scan Range 14 Terrain Scan Range 16 Terrain Scan Density 410 ECM Strength 2 Power Amplification 40 Armor Coverage 375 Resistance: KI 45 Resistance: TH 30 Resistance: EX 20 Resistance: EM 20 Resistance: I 20 Resistance: S 20 Resistance: P 20 Weapon Cycling 25 Evasion (%) 40 Target Analysis 8 Recoil Reduction 4 Matter Filtering 30 Kinecelleration 40 Offensive Hacking 30 Relay Coupler Types 2 Relay Coupler Value 136 Item Schematics ----------------- Magnetic Acceleration Cannon | -7/Factory | Hacked Imp. Heavy Armor Plating | -6/Factory | Hacked Hardcell Cannon | -4/Factory | Hacked Robot Schematics ------------------ L-31 Rogue | -7/Factory | Hacked Fabricated ------------ L-41 Fighter | x3 | -7/Factory | Preloaded L-41 Fighter | x3 | -6/Factory | Preloaded Magnetic Acceleration Cannon | x2 | -6/Factory Hardcell Cannon | x2 | -3/Research Alien Tech Used ----------------- None Achievements -------------- Error 47 Gunslinger Challenges ------------ None RPGLIKE | -11 -10 -10 -9 -8 -8 -8 -7 -7 -7 -7 -6 -6 -6 -6 -5 -5 -4 -4 -3 --------- Run | Scr Mat Min Mat Mat Gar Mat Fac Gar Fac Gar Fac Gar Fac Gar Fac Gar Fac Gar Res Levels Raised 27 | . . 2 3 2 3 1 3 1 . 1 2 1 . . 1 1 2 1 3 XP Earned 45285 | 4000 785 2400 4369 3589 4316 1786 4045 2030 524 990 2518 1216 . 665 1397 2027 2079 2241 4308 XP Spent 41940 | 3925 . 3030 4515 2930 4600 1500 3700 2300 . 1500 1400 3040 . . 1550 1250 3100 . 3600 Upgrades 78 | 12 . 12 13 6 9 3 2 1 . 3 4 4 . . 3 1 2 . 3 Power Slot 2 | 1 . . . . . . . . . . . . . . . . . . 1 Propulsion Slot 3 | 1 . . . 1 . . . . . . . . . . . . . . 1 Utility Slot 9 | 1 . 1 1 1 . . 2 1 . . . 1 . . . . 1 . . Weapon Slot 5 | 1 . 1 1 . . . . . . 1 . . . . . . . . 1 Core Integrity 5 | . . 2 . . . . . . . 2 . 1 . . . . . . . Heat Dissipation 10 | . . 4 3 3 . . . . . . . . . . . . . . . Energy Generation 2 | 1 . . . . . . . . . . . . . . 1 . . . . Energy Storage 1 | . . . . . . . . . . . . . . . 1 . . . . Matter Storage 1 | . . . . . . . . . . . . . . . . . 1 . . Mass Support 2 | 2 . . . . . . . . . . . . . . . . . . . Inventory Capacity 5 | 2 . . . . 2 . . . . . . . . . . 1 . . . Sight Range 4 | . . . . 1 . 3 . . . . . . . . . . . . . Sensor Range 7 | 2 . . 3 . . . . . . . . 2 . . . . . . . Terrain Scan Density 4 | 1 . . 3 . . . . . . . . . . . . . . . . Ranged Accuracy 4 | . . 1 2 . 1 . . . . . . . . . . . . . . Melee Accuracy 2 | . . 2 . . . . . . . . . . . . . . . . . Hack Attack % 4 | . . . . . 3 . . . . . . . . . 1 . . . . KI Resistance % 2 | . . 1 . . . . . . . . 1 . . . . . . . . TH Resistance % 2 | . . . . . 1 . . . . . 1 . . . . . . . . KI Damage % 2 | . . . . . . . . . . . 2 . . . . . . . . EX Damage % 2 | . . . . . 2 . . . . . . . . . . . . . . Protomatter Created 4224 | . 40 167 285 257 297 331 354 335 174 401 147 52 . 178 99 399 89 265 354 Integrity Restored 8511 | . 100 373 437 373 534 300 622 555 405 864 321 138 . 717 168 835 48 1008 713 Core 8261 | . 100 373 327 373 534 184 622 555 405 864 321 138 . 717 168 835 48 984 713 Parts 250 | . . . 110 . . 116 . . . . . . . . . . . 24 . Protomatter Decayed 2486 | . 6 42 406 94 117 218 30 113 39 112 15 36 . . 108 452 73 240 385 Game ------ Seed AssemblyThermicCalibrator Manual? 0 Play Time 02:27:01 Cumulative 118.6 hours Start 2022.03.27 @ 17:53:11 End 2022.03.27 @ 20:20:42 Sessions 1 Manual Loads 0 Difficulty Adventurer Special Mode Winter2019/RPGLIKE Game No. 44 Rogue 25 Adventurer 15 Explorer 4 Win Type - Total 14 Types 8/5/0/0/0/0/0/0/1 Lore% 50 Gallery% 58 Achievement% 57 Wizard Run 0 Options --------- ASCII 0 Keyboard 0 Movement Mouse Keybinds 0 Fullscreen 1 Font 18/SmallcapsGlow Map View 76x50 Tactical HUD 1 Map Filters NONE Filters NONE Steam 1 RUN: a6a4a252-6d17-4050-a986-3b839bc989c2